Cogmind - Beta 16 --- EXPLORER MODE // 2026.01.13 @ 09:56:54 Player: K.K.Y. Result: Destroyed by ZP-T5F(R) with Subdweller Laser Performance ------------- Evolutions (0) 0 Regions Visited (3) 600 Robots Destroyed (34) 170 Value Destroyed (941) 941 Prototype IDs (12) 240 Alien Tech Used (0) 0 Bonus (-75) -75 TOTAL SCORE: 1876 Bonus ------- Follower Combat Kills 25 Friendly Fire -100 Cogmind --------- Core Integrity 0/250 Matter 282/300 Energy 170/170 System Corruption 1% Temperature Cool (6) Movement Treading (160) Location -10/Subcaves Parts ------- > --- POWER (1) -------- Makeshift Power Source > --- PROPULSION (2) --- Light Treads Spiked Treads (fused) > --- UTILITY (3) ------ Medium Storage Unit Sensor Array (fused) Improved Terrain Scanner > --- WEAPON (2) ------- Barrage Gun Makeshift Hammer > --- INVENTORY (10) --- Improved Heat Sink High-capacity Storage Unit Machine Analyzer Makeshift Thermal Plating Bomb Drone Bay Mining Laser Multitool Peak State ------------ > --- POWER ------------ Makeshift Power Source > --- PROPULSION ------- Light Treads Spiked Treads > --- UTILITY ---------- Medium Storage Unit Sensor Array Makeshift Thermal Plating > --- WEAPON ----------- Battle Cannon Makeshift Hammer > --- INVENTORY -------- Improved Heat Sink High-capacity Storage Unit Machine Analyzer Improved Terrain Scanner Bomb Drone Bay Barrage Gun Mining Laser Multitool [Rating: 22] Favorites ----------- Power Makeshift Power Source Engine Makeshift Power Source Power Core Light Nuclear Core Propulsion Light Treads Treads Light Treads Utility Medium Storage Unit Device Sensor Array Storage Medium Storage Unit Protection Core Shielding Weapon Particle Gun Energy Gun Particle Gun Ballistic Gun Assault Rifle Ballistic Cannon Battle Cannon Special Weapon Mining Laser Impact Weapon Makeshift Hammer Build | -11 -10 -10 -10 ------- Run | Yrd Mat Min Sub Slots Evolved 1 | . 1 . . Power . | . . . . Propulsion . | . . . . Utility 1 | . 1 . . Weapon . | . . . . Parts Attached 30 | 5 5 4 16 Power 4 | 1 . 1 2 Engine 3 | 1 . . 2 Core 1 | . . 1 . Reactor . | . . . . Propulsion 9 | 2 1 1 5 Treads 9 | 2 1 1 5 Leg . | . . . . Wheel . | . . . . Hover . | . . . . Flight . | . . . . Utility 8 | . 3 . 5 Device 4 | . 1 . 3 Storage 2 | . 1 . 1 Processor . | . . . . Hackware . | . . . . Protection 2 | . 1 . 1 Artifact . | . . . . Weapon 9 | 2 1 2 4 Energy Gun 2 | . . 2 . Energy Cannon . | . . . . Ballistic Gun 4 | 2 1 . 1 Ballistic Cannon 1 | . . . 1 Launcher . | . . . . Special Weapon 1 | . . . 1 Impact Weapon 1 | . . . 1 Slashing Weapon . | . . . . Piercing Weapon . | . . . . Special Melee Weapon . | . . . . Unidentified Prototypes . | . . . . Parts Lost 3 | . . . 3 Power 1 | . . . 1 Propulsion . | . . . . Utility 1 | . . . 1 Weapon 1 | . . . 1 Highest Loss Streak 1 | . . . 1 To Critical Strikes . | . . . . Average Backups 8 | 2 8 8 8 Power . | . . . . Propulsion . | . 1 1 . Utility 5 | 2 4 6 5 Weapon 1 | . 1 1 2 Tool/Special . | . . . . Unused Backups 5 | . . . 5 Power . | . . . . Propulsion . | . . . . Utility 4 | . . . 4 Weapon . | . . . . Tool/Special 1 | . . . 1 Average Slot Usage (%) 96 | . 87 100 98 Engine 8 | . 12 1 9 Core 2 | . . 10 1 Treads 25 | . 25 25 25 Device 19 | . 4 12 24 Storage 11 | . 10 12 12 Protection 3 | . 9 12 . Energy Gun 11 | . . 21 11 Ballistic Gun 4 | . 25 3 . Ballistic Cannon 4 | . . . 6 Impact Weapon 4 | . . . 6 Peak Build Rating 22 | 5 11 16 22 Average Rating 15 | 4 8 14 17 On Entrance 8 | . 5 11 16 Avg Prop Armor Cover (%) . | . . . . Naked Turns . | . . . . Heaviest Build 23 | 8 20 23 23 Greatest Support 40 | 40 40 40 40 Greatest Overweight (x) . | . . . . Average Overweight (x) . | . . . . Largest Inventory Capacity 10 | 5 10 10 10 Average Capacity 9 | 5 9 10 10 Most Carried 10 | 5 10 10 10 Average Carried 8 | 2 8 9 9 Final Capacity 10 | 5 10 10 10 Final Carried 10 | 5 10 10 8 Class Distribution -------------------- 62% | Hacker-Mutant 37% | Scavenger-Mutant Dominant Class ---------------- Hacker-Mutant | -10/Materials Scavenger-Mutant | -10/Mines Hacker-Mutant | -10/Subcaves Resources | -11 -10 -10 -10 ----------- Run | Yrd Mat Min Sub Matter Collected 919 | 290 202 153 274 Remotely . | . . . . Salvage Created 1337 | 120 384 155 678 Parts 68 | 10 21 9 28 Haulers Intercepted 2 | . 2 . . Recyclers Shooed 1 | . 1 . . Parts Field Recycled . | . . . . Retrieved Matter . | . . . . Parts Self-Destructed . | . . . . Prevented . | . . . . Parts Restored . | . . . . Kills | -11 -10 -10 -10 ------- Run | Yrd Mat Min Sub Combat Hostiles Destroyed 27 | . 6 5 16 Melee 3 | . . . 3 Guns 20 | . 6 4 10 Classes Destroyed 11 | 2 4 1 4 Worker 1 | . 1 . . Tunneler 2 | 2 . . . Hauler 2 | . 2 . . Recycler 1 | 1 . . . Mechanic 1 | . 1 . . Swarmer 6 | . . 2 4 Grunt 9 | . 6 3 . Sentry 1 | . . . 1 Artisan 3 | . . . 3 Subdweller 11 | . . . 11 Scientist 1 | . . . 1 Best Kill Streak 3 | 3 3 2 2 Combat Bots Only 3 | . 3 2 2 Max Kills in Single Turn 1 | 1 1 1 1 Gunslinging . | . . . . Exploded . | . . . . Melee 1 | . . . 1 Uniques/NPCs Destroyed . | . . . . Combat | -11 -10 -10 -10 -------- Run | Yrd Mat Min Sub Hostile Shots Fired 202 | . 49 39 114 Missed 64 | . 12 13 39 Hits 138 | . 37 26 75 Projectile 138 | . 37 26 75 Critical Strikes 3 | . . 1 2 Damage Taken 1474 | . 260 194 1020 Core 257 | . 38 39 180 Absorbed by Shields . | . . . . Redirected to Shielding 16 | . 7 9 . Ignored by Resistances 820 | . 169 125 526 Core Remaining (%) 100 | 100 . . . Volleys Fired 127 | 10 46 20 51 Largest 2 | 2 2 2 2 Hottest 165 | 40 40 130 165 Shots Fired 249 | 20 92 39 98 Gun 228 | 20 92 39 77 Cannon 2 | . . . 2 Launcher . | . . . . Special 19 | . . . 19 Kinetic 147 | 20 92 31 4 Thermal 102 | . . 8 94 Explosive . | . . . . Electromagnetic . | . . . . Robot Hit Streak 29 | 14 25 28 29 Robot Miss Streak 5 | 1 1 5 2 Penetration Max . | . . . . Secondary Targets 4 | . 3 . 1 Max Gunslinging Chain 1 | . 1 . 1 Shots Hit Robots 193 | 16 76 29 72 Core Hits 59 | 5 23 9 22 Critical Kills 1 | . . 1 . Critical Parts Destroyed 3 | . 1 . 2 Critical Strikes 10 | . 1 2 7 Burn 6 | . . 1 5 Destroy 2 | . 1 1 . Smash 2 | . . . 2 Melee Attacks 47 | . . . 47 Impact 47 | . . . 47 Slashing . | . . . . Piercing . | . . . . Sneak Attacks . | . . . . Combat Hostiles . | . . . . Follow-up Attacks . | . . . . Damage Inflicted 2946 | 164 771 353 1658 Guns 2049 | 164 771 353 761 Cannons . | . . . . Explosions . | . . . . Melee 873 | . . . 873 Ramming . | . . . . Kinetic 1213 | 164 771 245 33 Thermal 860 | . . 108 752 Explosive . | . . . . Electromagnetic . | . . . . Impact 873 | . . . 873 Slashing . | . . . . Piercing . | . . . . Highest Corruption 1 | . 1 1 1 Average Corruption 1 | . 1 1 1 Corruption Purged . | . . . . Corruption Blocked . | . . . . Effects 27 | . . 4 23 Message Errors 6 | . . . 6 Matter Fused 8 | . . 3 5 Heat Flow Errors 2 | . . . 2 Energy Discharges 3 | . . . 3 Parts Fused 2 | . . . 2 Data Loss (minor) 5 | . . . 5 Weapon Failures 1 | . . 1 . Overload Shots . | . . . . Overflow Damage 126 | . . . 126 Projectiles 4 | . . . 4 Explosions . | . . . . Melee 122 | . . . 122 Knockbacks 2 | . . . 2 Impact 2 | . . . 2 Kinetic . | . . . . Secondary . | . . . . Self-Inflicted Damage . | . . . . Shots . | . . . . Rammed . | . . . . Targets Rammed . | . . . . Kicked . | . . . . Crushed . | . . . . Highest Temperature 159 | . 25 159 151 Average Temperature 33 | . 9 70 35 Received Heat Transfer 648 | . 240 168 240 Siege Activations . | . . . . Martial Activations . | . . . . Shielding Activations . | . . . . Robots Disrupted . | . . . . Combat Hostiles . | . . . . Robots Corrupted 3 | . . . 3 Combat Hostiles 3 | . . . 3 Parts Fried 4 | . . . 4 Impact Corruptions 6 | . . . 6 Robots Melted 1 | . . 1 . Combat Hostiles 1 | . . 1 . Parts Melted 5 | . . 2 3 Heat Transferred 2492 | . . 333 2159 Parts Sabotaged . | . . . . Parts Stolen . | . . . . Parts Stripped . | . . . . Power Chain Reactions . | . . . . Alert | -11 -10 -10 -10 ------- Run | Yrd Mat Min Sub Maximum Alert Level . | . . . . Low Security (%) 100 | 100 100 100 . Level 1 . | . . . . Level 2 . | . . . . Level 3 . | . . . . Level 4 . | . . . . Level 5 . | . . . . High Security . | . . . . Max Security . | . . . . Peak Influence 51 | 10 50 51 . Initial . | . . . . Average 6 | 1 6 6 . Influence Increases 528 | 15 177 151 185 Destroy 0b10 Robot/C 340 | . 120 120 100 Destroy 0b10 Robot/NC 35 | 15 20 . . Destroy Leader 64 | . 24 30 10 Allied During Kill 1 | . . 1 . Successful Hack 13 | . 13 . . Lose Combat Pursuer 75 | . . . 75 Influence Decreases 468 | 15 177 151 125 Time Decay 458 | 15 177 151 115 Lost Part 10 | . . . 10 Squads Dispatched . | . . . . Investigation . | . . . . Extermination . | . . . . Reinforcement . | . . . . Assault . | . . . . Garrison . | . . . . Intercept . | . . . . Searches Triggered . | . . . . Construction Impeded . | . . . . Haulers Reinforced . | . . . . Active Scanning Responses . | . . . . Cargo Convoy Interrupts . | . . . . Stealth | -11 -10 -10 -10 --------- Run | Yrd Mat Min Sub Distress Signals . | . . . . Communications Jammed . | . . . . Distress Signals . | . . . . Times Spotted 42 | . 11 6 25 Peak Tracking Total 6 | . 2 2 6 Tactical Retreats 3 | . . . 3 Traps | -11 -10 -10 -10 ------- Run | Yrd Mat Min Sub Traps Triggered 6 | . 1 . 5 Indirectly . | . . . . Trap Hack Attempts . | . . . . Triggered . | . . . . Disarmed . | . . . . Reprogrammed . | . . . . Reused . | . . . . Traps Extracted . | . . . . Installed . | . . . . Triggered . | . . . . Machines | -11 -10 -10 -10 ---------- Run | Yrd Mat Min Sub Machines Disabled . | . . . . Max in Single Turn . | . . . . Machines Repaired . | . . . . Machines Dismantled . | . . . . Machines Sabotaged . | . . . . Overloaded Fab Kills . | . . . . Hacking | -11 -10 -10 -10 --------- Run | Yrd Mat Min Sub Machines Accessed 5 | . 2 1 2 Terminals 2 | . 2 . . Fabricators . | . . . . Repair Stations . | . . . . Recycling Units . | . . . . Scanalyzers . | . . . . Garrison Access . | . . . . Total Hacks 12 | . 6 1 5 Successful 9 | . 3 1 5 Failed 3 | . 3 . . Catastrophic . | . . . . Database Lockouts . | . . . . Manual 4 | . 4 . . Terminals 6 | . 6 . . Fabricators . | . . . . Repair Stations . | . . . . Recycling Units . | . . . . Scanalyzers . | . . . . Garrison Access . | . . . . Terminal Hacks 7 | . 1 1 5 Record 4 | . . . 4 Robot Analysis 1 | . 1 . . Open Door 1 | . . 1 . Proto ID Catalog 1 | . . . 1 Fabricator Hacks . | . . . . Repair Station Hacks . | . . . . Recycling Unit Hacks . | . . . . Scanalyzer . | . . . . Garrison Access Hacks . | . . . . Unauthorized Hacks 2 | . 2 . . Terminals 2 | . 2 . . Botnet 2 | . 2 . . Fabricators . | . . . . Repair Stations . | . . . . Recycling Units . | . . . . Scanalyzers . | . . . . Garrison Access . | . . . . Data Cores Recovered . | . . . . Used . | . . . . Hacking Detections 2 | . 2 . . Full Trace Events . | . . . . Feedback Events . | . . . . Feedback Blocked . | . . . . Robot Schematics Acquired . | . . . . Robots Built . | . . . . Authchips . | . . . . Time . | . . . . Total Robot Build Rating . | . . . . Part Schematics Acquired . | . . . . Parts Built . | . . . . Authchips . | . . . . Time . | . . . . Total Part Build Rating . | . . . . Part Studies Acquired . | . . . . Parts Repaired . | . . . . Time . | . . . . Parts Recycled . | . . . . Recycled Matter . | . . . . Retrieved Matter . | . . . . Retrieved Components . | . . . . Parts Scanalyzed . | . . . . Part Schematics Acquired . | . . . . Parts Damaged . | . . . . Bothacking | -11 -10 -10 -10 ------------ Run | Yrd Mat Min Sub Used RIF Installer . | . . . . Robots Hacked . | . . . . Non-combat . | . . . . Combat . | . . . . Robot Hacks Applied . | . . . . Relay Couplers Released . | . . . . Fabnet Peak Effective % . | . . . . Robots Rewired . | . . . . Allies Hacked . | . . . . Hacks Repelled . | . . . . Allies | -11 -10 -10 -10 -------- Run | Yrd Mat Min Sub Total Allies 2 | . . 2 . Largest Group 2 | . . 2 2 Highest-Rated Group 39 | . . 39 39 Highest-Rated Ally 31 | . . 31 31 Total Orders . | . . . . Ally Attacks 11 | . . 7 4 Total Damage 162 | . . 105 57 Kills 1 | . . 1 . Allies Corrupted . | . . . . Allies Melted 1 | . . . 1 Intel | -11 -10 -10 -10 ------- Run | Yrd Mat Min Sub Active Infowar (turns) 3452 | . . . 3452 Sensors 3452 | . . . 3452 Terrain 1075 | . . . 1075 Structural 2141 | . . . 2141 Robot Analysis Total 1 | . 1 . . Derelict Logs Recovered 1 | . . . 1 Drone Launches . | . . . . Drone Recoveries . | . . . . Exploration | -11 -10 -10 -10 ------------- Run | Yrd Mat Min Sub Turns Passed 5221 | 128 730 907 3456 Spaces Moved 2834 | 63 368 485 1918 Core 13 | 13 . . . Treads 2821 | 50 368 485 1918 Legs . | . . . . Wheels . | . . . . Hover . | . . . . Flight . | . . . . Fastest Speed 50 | 50 160 160 160 Average Speed 159 | 137 160 160 160 Slowest Speed 160 | 160 160 160 160 Overloaded Moves . | . . . . Propulsion Burnouts . | . . . . Robots Hopped . | . . . . Potential Cave-ins . | . . . . Cave-ins Triggered . | . . . . Exploration Rate (%) 64 | 5 69 94 90 Regions Visited 3 Branch Regions 2 Pre-discovered Areas . | . . . . Known Exits Taken 3 | 1 1 1 . Unknown Exits Taken . | . . . . Scrap Searched 3 | . . 1 2 Spaces Dug 12 | . . . 12 Terrain Destroyed 12 | . . . 12 Melee 11 | . . . 11 Projectile 1 | . . . 1 AOE . | . . . . Terrain Rammed . | . . . . Walls Destroyed . | . . . . Machines Disabled . | . . . . Actions | -11 -10 -10 -10 --------- Run | Yrd Mat Min Sub Total 3210 | 87 428 579 2116 Wait 117 | . . 65 52 Move 2831 | 62 367 484 1918 Hop . | . . . . Pick Up 31 | 10 8 2 11 Fast Attach 2 | . . . 2 Attach 14 | 5 3 1 5 Detach 2 | . . . 2 Swap 22 | . 2 4 16 Drop 17 | . 2 3 12 Fire 127 | 10 46 20 51 Melee 47 | . . . 47 Ram . | . . . . Kick . | . . . . Crush . | . . . . Escape Stasis . | . . . . Rewire . | . . . . Trap . | . . . . Miscellaneous . | . . . . Route ------- -11/Scrapyard -10/Materials (discovered 4 exits: *Mat x2 / *Min x2) -10/Mines (discovered 3 exits: *Mat x2 / *Sub) -10/Subcaves (discovered 3 exits: *Mat x2 / *Rec) History --------- Turn | Location | Event 21 | -11/Scrapyard | Identified exit to Materials 21 | -11/Scrapyard | Discovered exit to Materials (range 16) 129 | -11/Scrapyard | Entered Materials 129 | -10/Materials | Evolved 1 slot: Utility x1 130 | -10/Materials | Met a group of wandering Federalists 209 | -10/Materials | Identified exit to Mines 209 | -10/Materials | Discovered exit to Mines (range 16) 305 | -10/Materials | Build established: Hacker-Mutant 587 | -10/Materials | Identified exit to Materials 587 | -10/Materials | Discovered exit to Materials (range 4) 791 | -10/Materials | Discovered exit to Mines (range 9) 837 | -10/Materials | Discovered exit to Materials (range 15) 859 | -10/Materials | Entered Mines 1008 | -10/Mines | Discovered exit to Materials (range 10) 1015 | -10/Mines | Received a Rocket Launcher from a helpful Derelict 1280 | -10/Mines | Build established: Scavenger-Mutant 1428 | -10/Mines | Found the Drone Emporium 1435 | -10/Mines | Found Prototype Device 1493 | -10/Mines | Found a hidden stash of uninstalled traps 1681 | -10/Mines | Discovered exit to Materials (range 9) 1750 | -10/Mines | Identified exit to Subcaves 1750 | -10/Mines | Discovered exit to Subcaves (range 3) 1766 | -10/Mines | Entered Subcaves 1766 | -10/Subcaves | Accompanied by 2 allies 1767 | -10/Subcaves | Approached by a straggling Scientist 1771 | -10/Subcaves | Led the pair of lost Derelicts to an unsafe place 2074 | -10/Subcaves | Ambushed by angry Subdweller bent on revenge 2077 | -10/Subcaves | Core integrity fell below 50% 2202 | -10/Subcaves | Learned location of 1 exit from Materials 2223 | -10/Subcaves | Identified exit to Materials 2223 | -10/Subcaves | Discovered exit to Materials (range 9) 2282 | -10/Subcaves | Visited 4L-MR0's lab 2666 | -10/Subcaves | Shifting Twisted Machinery released Riot Gun 2672 | -10/Subcaves | Shifting Twisted Machinery released Mak. Thermal Plating 3131 | -10/Subcaves | Shifting Twisted Machinery released Sub. Machine Gun 3157 | -10/Subcaves | Shifting Twisted Machinery released Flamer 3193 | -10/Subcaves | A swath of the cavern ceiling suddenly collapsed 3327 | -10/Subcaves | Visited Clippyterm 3332 | -10/Subcaves | Learned 40 Factory zone layouts 3332 | -10/Subcaves | Learned Factory emergency access door positions 3512 | -10/Subcaves | A swath of the cavern ceiling suddenly collapsed 3542 | -10/Subcaves | Shifting Twisted Machinery released Sub. Monowheel 3542 | -10/Subcaves | Shifting Twisted Machinery released Sub. Laser 3759 | -10/Subcaves | Build established: Hacker-Mutant 3913 | -10/Subcaves | Core integrity fell below 20% 4549 | -10/Subcaves | Discovered exit to Materials (range 7) 5174 | -10/Subcaves | Ambushed by Subdwellers from Twisted Machinery 5179 | -10/Subcaves | Identified exit to Recycling 5179 | -10/Subcaves | Discovered exit to Recycling (range 16) 5222 | -10/Subcaves | Destroyed by ZP-T5F(R) with Subdweller Laser Last Messages --------------- 04495_ Acquired Imp. Terrain Scanner. 04496_ Dropped Sml. Battery. 04549_ EXIT=FOUND: MATERIALS 04658_ Acquired 20 matter. 04661_ LX-Z5C(R): "SUBHATE!" 04671_ LX-Z5C(R) knocked back. 04673_ System corrupted: Spk. Treads fused. 04681_ LX-Z5C(R) destroyed. 04688_ AMWTUM,NZ8OB1GZBNIHR 04736_ System corrupted: Heat flow error (+158). 05074_ N7Z =RM&>QS&C4JK U S< HAKX,N 05179_ EXIT=FOUND: RECYCLING 05187_ Destroyed Flight Unit. 05187_ S-10 Pest system corrupted by crushing effect. 05187_ Lgt. Assault Rifle fried. 05187_ Flight Unit fried. 05187_ S-10 Pest destroyed. 05191_ Battle Cannon destroyed. 05199_ S-10 Pest destroyed. Map ----- +----------------------------------------------------+ | ?## ### ###??# ### #????? | | ?### #### ###### ## #????? | | ?### ##### ########## ## ##????? | | ??## ##### ## ########## ## #?????? | | ??## #### ### ###?????# #?????? | | ??## ######## ##?????#???# ##????? | | ??## ####### ##????## ## #?????? | | ??## ## #### ###????# #####????#? | | ??## ## #####??# #?????????? | | ??## ## ###??## #### ##?????????? | | ??## ## ###??# ???## #?????#???? | | ??## ## ### ##### ???## ####???????? | | ##### ## ## ### ??## ##??????? | | ##### ######### #### ### #??????# | | ## ########## #### ## ##?????? | | & #### ## ##???## ## #?????? | | % ##### ##???## #?????? | | ! ###### ###???# ##?#???? | | ## ###?### ####??? ### ##??????? | | ## ##??##### #####???? ?#???## ###???????? | | #####???#########???????????# #???#?????? | | #####??????####???????#?????# ##????????# | | ???????????#????????????????# ##??#????# | | ??????????????????????######## ##??????? | | ????????????#?????????## ### #??????? | | ????????????????????#?# @ #??#???? | | ????????????????#?????# ##?????? | | #???????#????????????## ##### #??#??? | | #???????????????????##* ####???# ###????? | | ?????????????????????#% ##??????# ##??????? | | ??????????#??? * #???#???## #???????# | | ????????#?< =%%% #?#???##?# ##??????? | | ???????????"" [* ???##?## ####???# | | ???????????" ######RR #?????# #?????? | | ???????????" ?????# ##?????## #?????? | | ??????????#""" ?????? ###????#??####?????? | | ???????????##??????? #?#?????#??????????? | | ??????????????????? " #?????????????????? | | ????????????????? ?""" ##"# #?????????????????? | | ???????????????????""""? " ###???#?????????????? | | ?????????????????????" ? " #???????????????????? | | ?????????????????????" ?" ##???????????????????? | | ???????????????????#??#???? #????????????????????? | | ????????????????????????????#????????????????????? | | ?????????????????????????????????????????????????? | | ?????????????????????????????????????????????????? | | ?????????????????????????????????????????????????? | | ?????????????????????????????????????????????????? | | ?????????????????????????????????????????????????? | | ?????????????????????????????????????????????????? | +----------------------------------------------------+ Best States ------------- Heat Dissipation 39 Energy Generation 15 Energy Capacity 250 Matter Stores 300 Matter Capacity 300 Sight Range 16 Robot Scan Range 14 Terrain Scan Range 16 Terrain Scan Density 10 Resistance: KI 35 Resistance: TH 35 Resistance: EX 35 Resistance: EM 35 Resistance: I 35 Resistance: S 35 Resistance: P 35 Core Shielding 20 Evasion (%) 50 Recoil Reduction 2 Offensive Hacking 20 Item Schematics ----------------- None Robot Schematics ------------------ None Fabricated ------------ Nothing Repaired ---------- Nothing Studied --------- None Alien Tech Used ----------------- None Achievements -------------- None Challenges ------------ None Game ------ Seed CargoSpreadRedistributor Manual? 0 Play Time 00:22:52 Cumulative 275.1 hours Start 2026.01.13 @ 09:37:43 End 2026.01.13 @ 09:56:54 Sessions 1 Manual Loads 0 Difficulty Explorer Special Mode None Game No. 430 Rogue 0 Adventurer 0 Explorer 430 Win Type - Total 0 Types 0/0/0/0/0/0/0/0/0/0 Lore% 73 Gallery% 69 Achievement% 55 Wizard Run 0 Options --------- Layout 1 ASCII 0 Keyboard 0 Movement Mouse Keybinds 1 Fullscreen 1 Font 24/Smallcaps Map View 50x35 Zoom Use 0% Tactical HUD 1 Map Filters NONE Filters NONE Steam 1 RUN: c70df92d-6035-438c-a455-717aeee3bc9b